[Event "FIDE Women World Blitz 2021"]
[Site "Warsaw"]
[Date "2021.12.30"]
[Round "10.1"]
[White "Doluhanova, Evgeniya"]
[Black "Dylag, Emilia"]
[Result "1/2-1/2"]
[ECO "A13"]
[WhiteElo "2237"]
[BlackElo "1863"]
[Annotator "ChessBase"]
[PlyCount "180"]
[EventDate "2021.12.29"]
[EventType "swiss"]
[EventCountry "POL"]
[Tiebreak "Cut1 Buchholz"]
[SourceTitle "playchess.com"]
[Source "ChessBase"]
[SourceQuality "1"]
[TimeControl "180+2"]

1. Nf3 {[%emt 0:00:02]} d5 {[%emt 0:00:01]} 2. b3 {[%emt 0:00:02]} Nf6 {
[%emt 0:00:02]} 3. Bb2 {[%emt 0:00:01]} e6 {[%emt 0:00:02]} 4. e3 {[%emt 0:00:
01]} Be7 {[%emt 0:00:02]} 5. c4 {[%emt 0:00:01]} O-O {[%emt 0:00:04]} 6. Be2 {
[%emt 0:00:02]} c5 {[%emt 0:00:02]} 7. O-O {[%emt 0:00:04]} dxc4 {[%emt 0:00:
09]} 8. bxc4 {[%emt 0:00:03]} Nc6 {[%emt 0:00:02]} 9. d4 {[%emt 0:00:05]} b6 {
[%emt 0:00:30]} 10. Nc3 {[%emt 0:00:08]} cxd4 {[%emt 0:00:11]} 11. exd4 {
[%emt 0:00:03]} Bb7 {[%emt 0:00:05]} 12. Rc1 {[%emt 0:00:23]} Rc8 {[%emt 0:00:
01]} 13. Bd3 {[%emt 0:00:39]} Na5 {[%emt 0:00:12]} 14. Nb1 {[%emt 0:00:53]} Qc7
{[%emt 0:00:22]} 15. Nbd2 {[%emt 0:00:07]} Rfd8 {[%emt 0:00:04]} 16. h3 {
[%emt 0:00:07]} h6 {[%emt 0:00:01]} 17. Qe2 {[%emt 0:00:08]} Nh5 {[%emt 0:00:
29]} 18. Qe3 {[%emt 0:00:17]} Qf4 {[%emt 0:00:09]} 19. Rfe1 {[%emt 0:00:05]}
Qxe3 {[%emt 0:00:04]} 20. fxe3 {[%emt 0:00:02]} Bb4 {[%emt 0:00:20]} 21. a3 {
[%emt 0:00:08]} Be7 {[%emt 0:00:09]} 22. Ne5 {[%emt 0:00:05]} Bd6 {[%emt 0:00:
12]} 23. Nef3 {[%emt 0:00:07]} Bg3 {[%emt 0:00:01]} 24. Red1 {[%emt 0:00:02]}
Nf6 {[%emt 0:00:05]} 25. Nf1 {[%emt 0:00:03]} Bb8 {[%emt 0:00:02]} 26. Bc3 {
[%emt 0:00:02]} Nc6 {[%emt 0:00:04]} 27. e4 {[%emt 0:00:04]} Bf4 {[%emt 0:00:
04]} 28. Rb1 {[%emt 0:00:01]} Ba6 {[%emt 0:00:06]} 29. d5 {[%emt 0:00:02]} Na5
{[%emt 0:00:07]} 30. Bxa5 {[%emt 0:00:02]} bxa5 {[%emt 0:00:01]} 31. e5 {
[%emt 0:00:02]} Nd7 {[%emt 0:00:08]} 32. Re1 {[%emt 0:00:05]} Bxc4 {[%emt 0:00:
05]} 33. Bxc4 {[%emt 0:00:02]} Rxc4 {[%emt 0:00:00]} 34. dxe6 {[%emt 0:00:01]}
fxe6 {[%emt 0:00:01]} 35. g3 {[%emt 0:00:02]} Bg5 {[%emt 0:00:03]} 36. Nxg5 {
[%emt 0:00:01]} hxg5 {[%emt 0:00:01]} 37. Red1 {[%emt 0:00:02]} Rcc8 {[%emt 0:
00:07]} 38. Rb5 {[%emt 0:00:03]} a4 {[%emt 0:00:03]} 39. Ra5 {[%emt 0:00:01]}
Nb6 {[%emt 0:00:01]} 40. Rxd8+ {[%emt 0:00:02]} Rxd8 {[%emt 0:00:01]} 41. Rxa7
{[%emt 0:00:02]} Rd5 {[%emt 0:00:01]} 42. Ra6 {[%emt 0:00:02]} Rb5 {[%emt 0:00:
04]} 43. Nd2 {[%emt 0:00:02]} Kf7 {[%emt 0:00:02]} 44. Nf3 {[%emt 0:00:01]} Kg6
{[%emt 0:00:03]} 45. Nd4 {[%emt 0:00:01]} Rd5 {[%emt 0:00:02]} 46. Rxb6 {
[%emt 0:00:03]} Rxd4 {[%emt 0:00:01]} 47. Rxe6+ {[%emt 0:00:01]} Kf5 {[%emt 0:
00:01]} 48. Re7 {[%emt 0:00:16]} Kg6 {[%emt 0:00:01]} 49. Ra7 {[%emt 0:00:00]}
Re4 {[%emt 0:00:05]} 50. e6 {[%emt 0:00:00]} Kf6 {[%emt 0:00:05]} 51. e7 {
[%emt 0:00:00]} Rxe7 {[%emt 0:00:01]} 52. Rxa4 {[%emt 0:00:00]} Re2 {[%emt 0:
00:02]} 53. Ra5 {[%emt 0:00:00]} Ra2 {[%emt 0:00:02]} 54. a4 {[%emt 0:00:00]}
Kg6 {[%emt 0:00:01]} 55. g4 {[%emt 0:00:00]} Kh6 {[%emt 0:00:03]} 56. Ra6+ {
[%emt 0:00:00]} Kh7 {[%emt 0:00:02]} 57. a5 {[%emt 0:00:00]} Kg8 {[%emt 0:00:
03]} 58. Ra8+ {[%emt 0:00:00]} Kh7 {[%emt 0:00:01]} 59. a6 {[%emt 0:00:00]} Kg6
{[%emt 0:00:03]} 60. a7 {[%emt 0:00:00]} Kh7 {[%emt 0:00:01]} 61. Kf1 {[%emt 0:
00:00]} Ra1+ {[%emt 0:00:01]} 62. Ke2 {[%emt 0:00:00]} Ra2+ {[%emt 0:00:01]}
63. Ke3 {[%emt 0:00:00]} Ra3+ {[%emt 0:00:01]} 64. Ke4 {[%emt 0:00:00]} Ra4+ {
[%emt 0:00:01]} 65. Kf5 {[%emt 0:00:00]} Ra5+ {[%emt 0:00:02]} 66. Ke6 {
[%emt 0:00:00]} Ra6+ {[%emt 0:00:02]} 67. Kd7 {[%emt 0:00:00]} Ra2 {[%emt 0:00:
03]} 68. Kc6 {[%emt 0:00:00]} Ra1 {[%emt 0:00:05]} 69. Kd5 {[%emt 0:00:03]}
Ra5+ {[%emt 0:00:01]} 70. Ke6 {[%emt 0:00:03]} Ra6+ {[%emt 0:00:01]} 71. Kf7 {
[%emt 0:00:03]} Ra3 {[%emt 0:00:03]} 72. Re8 {[%emt 0:00:26]} Rxa7+ {[%emt 0:
00:01]} 73. Re7 {[%emt 0:00:01]} Ra3 {[%emt 0:00:11]} 74. Re5 {[%emt 0:00:08]}
Rxh3 {[%emt 0:00:00]} 75. Rxg5 {[%emt 0:00:01]} Kh8 {[%emt 0:00:00]} 76. Rxg7 {
[%emt 0:00:06]} Rf3+ {[%emt 0:00:00]} 77. Kg6 {[%emt 0:00:01]} Rg3 {[%emt 0:00:
02]} 78. Rh7+ {[%emt 0:00:01]} Kg8 {[%emt 0:00:00]} 79. Rh4 {[%emt 0:00:02]}
Ra3 {[%emt 0:00:03]} 80. g5 {[%emt 0:00:02]} Ra6+ {[%emt 0:00:01]} 81. Kh5 {
[%emt 0:00:01]} Ra5 {[%emt 0:00:02]} 82. Kh6 {[%emt 0:00:01]} Ra8 {[%emt 0:00:
05]} 83. g6 {[%emt 0:00:02]} Rb8 {[%emt 0:00:01]} 84. Rd4 {[%emt 0:00:03]} Rc8
{[%emt 0:00:01]} 85. Rd6 {[%emt 0:00:02]} Rb8 {[%emt 0:00:01]} 86. g7 {[%emt 0:
00:04]} Ra8 {[%emt 0:00:02]} 87. Kg6 {[%emt 0:00:02]} Rb8 {[%emt 0:00:01]} 88.
Rf6 {[%emt 0:00:04]} Ra8 {[%emt 0:00:01]} 89. Re6 {[%emt 0:00:01]} Rb8 {
[%emt 0:00:01]} 90. Rf6 {[%emt 0:00:01]} Ra8 {[%emt 0:00:11]} 1/2-1/2

[Event "FIDE Women World Blitz 2021"]
[Site "Warsaw"]
[Date "2021.12.30"]
[Round "10.2"]
[White "Kosteniuk, Alexandra"]
[Black "Koneru, Humpy"]
[Result "0-1"]
[ECO "C70"]
[WhiteElo "2518"]
[BlackElo "2586"]
[Annotator "ChessBase"]
[PlyCount "82"]
[EventDate "2021.12.29"]
[EventType "swiss"]
[EventCountry "POL"]
[Tiebreak "Cut1 Buchholz"]
[SourceTitle "playchess.com"]
[Source "ChessBase"]
[SourceQuality "1"]
[TimeControl "180+2"]

1. e4 {[%emt 0:00:01]} e5 {[%emt 0:00:02]} 2. Nf3 {[%emt 0:00:01]} Nc6 {
[%emt 0:00:02]} 3. Bb5 {[%emt 0:00:02]} a6 {[%emt 0:00:02]} 4. Ba4 {[%emt 0:00:
01]} Bc5 {[%emt 0:00:03]} 5. d3 {[%emt 0:00:16]} Nge7 {[%emt 0:00:07]} 6. Nc3 {
[%emt 0:00:20]} O-O {[%emt 0:00:11]} 7. O-O {[%emt 0:00:13]} d6 {[%emt 0:00:10]
} 8. a3 {[%emt 0:00:02]} Bg4 {[%emt 0:00:44]} 9. h3 {[%emt 0:00:01]} Bxf3 {
[%emt 0:00:11]} 10. Qxf3 {[%emt 0:00:02]} b5 {[%emt 0:00:00]} 11. Bb3 {[%emt 0:
00:00]} Nd4 {[%emt 0:00:02]} 12. Qg3 {[%emt 0:00:07]} a5 {[%emt 0:00:18]} 13.
Bh6 {[%emt 0:00:28]} Ng6 {[%emt 0:00:06]} 14. Bg5 {[%emt 0:00:07]} Qd7 {
[%emt 0:00:03]} 15. Kh1 {[%emt 0:00:26]} a4 {[%emt 0:00:08]} 16. Ba2 {[%emt 0:
00:02]} Nxc2 {[%emt 0:00:01]} 17. Rac1 {[%emt 0:00:04]} Nd4 {[%emt 0:00:01]}
18. h4 {[%emt 0:00:11]} Nb3 {[%emt 0:00:34]} 19. Bxb3 {[%emt 0:00:10]} axb3 {
[%emt 0:00:01]} 20. h5 {[%emt 0:00:01]} Nf4 {[%emt 0:00:07]} 21. Bxf4 {[%emt 0:
00:09]} exf4 {[%emt 0:00:01]} 22. Qxf4 {[%emt 0:00:02]} f5 {[%emt 0:00:04]} 23.
e5 {[%emt 0:00:06]} Qf7 {[%emt 0:00:11]} 24. d4 {[%emt 0:00:06]} Qxh5+ {
[%emt 0:00:04]} 25. Kg1 {[%emt 0:00:01]} dxe5 {[%emt 0:00:04]} 26. dxe5 {
[%emt 0:00:01]} g5 {[%emt 0:00:11]} 27. Qh2 {[%emt 0:00:14]} Qxh2+ {[%emt 0:00:
03]} 28. Kxh2 {[%emt 0:00:01]} Bd4 {[%emt 0:00:03]} 29. e6 {[%emt 0:00:12]} c6
{[%emt 0:00:05]} 30. Rfe1 {[%emt 0:00:02]} Rae8 {[%emt 0:00:02]} 31. Rcd1 {
[%emt 0:00:19]} Bxf2 {[%emt 0:00:02]} 32. Re2 {[%emt 0:00:01]} Bc5 {[%emt 0:00:
05]} 33. Re5 {[%emt 0:00:05]} Bb6 {[%emt 0:00:02]} 34. g3 {[%emt 0:00:03]} Rf6
{[%emt 0:00:07]} 35. e7 {[%emt 0:00:01]} Kf7 {[%emt 0:00:02]} 36. Rd7 {[%emt 0:
00:02]} Re6 {[%emt 0:00:03]} 37. Rxe6 {[%emt 0:00:02]} Kxe6 {[%emt 0:00:01]}
38. Rd3 {[%emt 0:00:03]} Rxe7 {[%emt 0:00:01]} 39. Nd1 {[%emt 0:00:06]} Kf6 {
[%emt 0:00:02]} 40. Rxb3 {[%emt 0:00:01]} Re2+ {[%emt 0:00:01]} 41. Kh3 {
[%emt 0:00:02]} g4+ {[%emt 0:00:01]} 0-1

[Event "FIDE Women World Blitz 2021"]
[Site "Warsaw"]
[Date "2021.12.30"]
[Round "10.2"]
[White "Semenova, Elena"]
[Black "Ovod, Evgenija"]
[Result "1-0"]
[ECO "C49"]
[WhiteElo "2233"]
[BlackElo "2366"]
[Annotator "NA"]
[PlyCount "99"]
[EventDate "2021.12.29"]
[EventType "swiss"]
[EventCountry "POL"]
[Tiebreak "Cut1 Buchholz"]
[SourceTitle "playchess.com"]
[Source "ChessBase"]
[SourceQuality "1"]
[TimeControl "180+2"]

1. e4 {[%emt 0:00:02]} e5 {[%emt 0:00:00]} 2. Nf3 Nc6 3. Nc3 {[%emt 0:00:01]}
Nf6 {[%emt 0:00:02]} 4. Bb5 {[%emt 0:00:01]} Bb4 {[%emt 0:00:02]} 5. O-O {
[%emt 0:00:01]} O-O {[%emt 0:00:04]} 6. d3 {[%emt 0:00:01]} Bxc3 {[%emt 0:00:
02]} 7. bxc3 {[%emt 0:00:01]} d6 {[%emt 0:00:01]} 8. Bg5 {[%emt 0:00:02]} Bd7 {
[%emt 0:00:05]} 9. Rb1 {[%emt 0:00:01]} Rb8 {[%emt 0:00:06]} 10. Re1 {[%emt 0:
00:04]} a6 {[%emt 0:00:04]} 11. Bc4 {[%emt 0:00:11]} Na5 {[%emt 0:00:18]} 12.
Nd2 {[%emt 0:00:19]} b5 {[%emt 0:00:28]} 13. Bb3 {[%emt 0:00:08]} Nxb3 {
[%emt 0:00:02]} 14. axb3 {[%emt 0:00:12]} a5 {[%emt 0:00:10]} 15. c4 {[%emt 0:
00:10]} b4 {[%emt 0:00:30]} 16. Ra1 {[%emt 0:00:08]} Ra8 {[%emt 0:00:02]} 17.
Nf1 {[%emt 0:00:08]} Qe7 {[%emt 0:00:11]} 18. Ne3 {[%emt 0:00:07]} Qe6 {
[%emt 0:00:01]} 19. Nf5 {[%emt 0:00:12]} h6 {[%emt 0:00:17]} 20. Bh4 {[%emt 0:
00:04]} Kh7 {[%emt 0:00:19]} 21. d4 {[%emt 0:00:07]} exd4 {[%emt 0:00:15]} 22.
Qxd4 {[%emt 0:00:05]} Ne8 {[%emt 0:00:27]} 23. h3 {[%emt 0:00:20]} g6 {[%emt 0:
00:04]} 24. Ne3 {[%emt 0:00:05]} g5 {[%emt 0:00:06]} 25. Bg3 {[%emt 0:00:01]}
Ng7 {[%emt 0:00:04]} 26. e5 {[%emt 0:00:19]} dxe5 {[%emt 0:00:05]} 27. Qxe5 {
[%emt 0:00:22]} Qxe5 {[%emt 0:00:02]} 28. Bxe5 {[%emt 0:00:01]} c6 {[%emt 0:00:
01]} 29. c5 {[%emt 0:00:08]} Ne6 {[%emt 0:00:02]} 30. Nc4 {[%emt 0:00:03]} Nxc5
{[%emt 0:00:03]} 31. Bd6 {[%emt 0:00:04]} Ne6 {[%emt 0:00:03]} 32. Bxf8 {
[%emt 0:00:02]} Rxf8 {[%emt 0:00:02]} 33. Rxa5 {[%emt 0:00:01]} Nd4 {[%emt 0:
00:02]} 34. Ne3 {[%emt 0:00:08]} Be6 {[%emt 0:00:02]} 35. Rd1 {[%emt 0:00:02]}
Ne2+ {[%emt 0:00:01]} 36. Kf1 {[%emt 0:00:04]} Nc3 {[%emt 0:00:01]} 37. Rd6 {
[%emt 0:00:03]} Rc8 {[%emt 0:00:02]} 38. h4 {[%emt 0:00:06]} Kg6 {[%emt 0:00:
01]} 39. f3 {[%emt 0:00:03]} c5 {[%emt 0:00:01]} 40. Nc4 {[%emt 0:00:04]} gxh4
{[%emt 0:00:02]} 41. Ne5+ {[%emt 0:00:00]} Kf5 {[%emt 0:00:01]} 42. Nd3 {
[%emt 0:00:00]} Kf6 {[%emt 0:00:03]} 43. Nxc5 {[%emt 0:00:00]} h3 {[%emt 0:00:
03]} 44. gxh3 {[%emt 0:00:00]} Ke7 {[%emt 0:00:02]} 45. Rb6 {[%emt 0:00:00]}
Bxh3+ {[%emt 0:00:01]} 46. Kf2 {[%emt 0:00:00]} Bf5 {[%emt 0:00:02]} 47. Ra7+ {
[%emt 0:00:00]} Kf8 {[%emt 0:00:01]} 48. Nd7+ {[%emt 0:00:00]} Kg7 {[%emt 0:00:
02]} 49. Ne5 {[%emt 0:00:00]} Bg6 {[%emt 0:00:04]} 50. Rxg6+ {[%emt 0:00:02]}
1-0

[Event "FIDE Women World Blitz 2021"]
[Site "Warsaw"]
[Date "2021.12.30"]
[Round "10.3"]
[White "Gunina, Valentina"]
[Black "Abdumalik, Zhansaya"]
[Result "1-0"]
[ECO "D80"]
[WhiteElo "2480"]
[BlackElo "2507"]
[Annotator "ChessBase"]
[PlyCount "109"]
[EventDate "2021.12.29"]
[EventType "swiss"]
[EventCountry "POL"]
[Tiebreak "Cut1 Buchholz"]
[SourceTitle "playchess.com"]
[Source "ChessBase"]
[SourceQuality "1"]
[TimeControl "180+2"]

1. d4 {[%emt 0:00:02]} Nf6 {[%emt 0:00:01]} 2. c4 {[%emt 0:00:01]} g6 {[%emt 0:
00:01]} 3. Nc3 {[%emt 0:00:01]} d5 {[%emt 0:00:01]} 4. Nf3 {[%emt 0:00:02]} Bg7
{[%emt 0:00:01]} 5. Bg5 {[%emt 0:00:01]} Ne4 {[%emt 0:00:07]} 6. Bf4 {[%emt 0:
00:01]} Nxc3 {[%emt 0:00:03]} 7. bxc3 {[%emt 0:00:02]} O-O {[%emt 0:00:09]} 8.
e3 {[%emt 0:00:04]} c5 {[%emt 0:00:02]} 9. cxd5 {[%emt 0:00:05]} Qxd5 {[%emt 0:
00:06]} 10. Be2 {[%emt 0:00:03]} cxd4 {[%emt 0:00:08]} 11. cxd4 {[%emt 0:00:02]
} Qa5+ {[%emt 0:00:01]} 12. Qd2 {[%emt 0:00:01]} Qxd2+ {[%emt 0:00:02]} 13.
Kxd2 {[%emt 0:00:04]} Nc6 {[%emt 0:00:03]} 14. Rhc1 {[%emt 0:00:07]} Rd8 {
[%emt 0:00:08]} 15. Ke1 {[%emt 0:00:03]} Bf5 {[%emt 0:00:06]} 16. h3 {[%emt 0:
00:23]} Nb4 {[%emt 0:00:26]} 17. Kd2 {[%emt 0:00:32]} Be4 {[%emt 0:00:24]} 18.
a3 {[%emt 0:00:17]} Nc6 {[%emt 0:00:23]} 19. Ke1 {[%emt 0:00:07]} Rac8 {
[%emt 0:00:08]} 20. g4 {[%emt 0:00:08]} Bxf3 {[%emt 0:00:25]} 21. Bxf3 {
[%emt 0:00:02]} e5 {[%emt 0:00:00]} 22. Bxc6 {[%emt 0:00:19]} exf4 {[%emt 0:00:
09]} 23. Bxb7 {[%emt 0:00:03]} Rb8 {[%emt 0:00:03]} 24. Rc7 {[%emt 0:00:04]}
fxe3 {[%emt 0:00:04]} 25. fxe3 {[%emt 0:00:01]} Re8 {[%emt 0:00:01]} 26. Kf2 {
[%emt 0:00:16]} Bh6 {[%emt 0:00:01]} 27. e4 {[%emt 0:00:07]} Bg7 {[%emt 0:00:
13]} 28. Rd1 {[%emt 0:00:05]} Red8 {[%emt 0:00:02]} 29. Bd5 {[%emt 0:00:06]}
Rb2+ {[%emt 0:00:09]} 30. Kf3 {[%emt 0:00:01]} Kh8 {[%emt 0:00:08]} 31. Rxa7 {
[%emt 0:00:07]} f5 {[%emt 0:00:02]} 32. gxf5 {[%emt 0:00:01]} gxf5 {[%emt 0:00:
01]} 33. exf5 {[%emt 0:00:16]} Rxd5 {[%emt 0:00:10]} 34. Ra8+ {[%emt 0:00:01]}
Bf8 {[%emt 0:00:01]} 35. Rxf8+ {[%emt 0:00:02]} Kg7 {[%emt 0:00:00]} 36. Ke4 {
[%emt 0:00:04]} Ra5 {[%emt 0:00:05]} 37. Rd8 {[%emt 0:00:05]} Re2+ {[%emt 0:00:
03]} 38. Kf3 {[%emt 0:00:07]} Rc2 {[%emt 0:00:02]} 39. Rg1+ {[%emt 0:00:01]}
Kf6 {[%emt 0:00:02]} 40. Rf8+ {[%emt 0:00:13]} Ke7 {[%emt 0:00:02]} 41. Rh8 {
[%emt 0:00:01]} Rxa3+ {[%emt 0:00:04]} 42. Kg4 {[%emt 0:00:05]} Rd2 {[%emt 0:
00:06]} 43. Rxh7+ {[%emt 0:00:01]} Kd6 {[%emt 0:00:03]} 44. Rh6+ {[%emt 0:00:
03]} Kd5 {[%emt 0:00:02]} 45. Rh8 {[%emt 0:00:04]} Rxd4+ {[%emt 0:00:06]} 46.
Kg5 {[%emt 0:00:01]} Rb4 {[%emt 0:00:01]} 47. Rd8+ {[%emt 0:00:02]} Kc6 {
[%emt 0:00:01]} 48. h4 {[%emt 0:00:03]} Rf3 {[%emt 0:00:02]} 49. f6 {[%emt 0:
00:01]} Rbf4 {[%emt 0:00:01]} 50. Rf8 {[%emt 0:00:01]} Rf5+ {[%emt 0:00:02]}
51. Kg6 {[%emt 0:00:01]} R5f4 {[%emt 0:00:02]} 52. f7 {[%emt 0:00:01]} Rxh4 {
[%emt 0:00:03]} 53. Rc8+ {[%emt 0:00:01]} Kd7 {[%emt 0:00:01]} 54. f8=Q {
[%emt 0:00:03]} Rxf8 {[%emt 0:00:03]} 55. Rxf8 {[%emt 0:00:01]} 1-0

[Event "FIDE Women World Blitz 2021"]
[Site "Warsaw"]
[Date "2021.12.30"]
[Round "10.3"]
[White "Parol, Pola"]
[Black "Nur-Mukhametova, Alisa"]
[Result "0-1"]
[ECO "B81"]
[WhiteElo "1823"]
[BlackElo "2225"]
[Annotator "NA"]
[PlyCount "94"]
[EventDate "2021.12.29"]
[EventType "swiss"]
[EventCountry "POL"]
[Tiebreak "Cut1 Buchholz"]
[SourceTitle "playchess.com"]
[Source "ChessBase"]
[SourceQuality "1"]
[TimeControl "180+2"]

1. e4 {[%emt 0:00:00]} c5 {[%emt 0:00:01]} 2. Nf3 {[%emt 0:00:01]} e6 {[%emt 0:
00:01]} 3. d4 {[%emt 0:00:01]} cxd4 {[%emt 0:00:01]} 4. Nxd4 {[%emt 0:00:01]}
Nf6 {[%emt 0:00:02]} 5. Nc3 {[%emt 0:00:01]} d6 {[%emt 0:00:01]} 6. g4 {
[%emt 0:00:02]} h6 {[%emt 0:00:01]} 7. Rg1 {[%emt 0:00:05]} Nc6 {[%emt 0:00:01]
} 8. Be3 {[%emt 0:00:04]} a6 {[%emt 0:00:11]} 9. Qe2 {[%emt 0:00:06]} Nxd4 {
[%emt 0:00:36]} 10. Bxd4 {[%emt 0:00:01]} e5 {[%emt 0:00:01]} 11. Be3 {[%emt 0:
00:02]} Be6 {[%emt 0:00:17]} 12. O-O-O {[%emt 0:00:04]} b5 {[%emt 0:00:07]} 13.
h4 {[%emt 0:00:38]} Qa5 {[%emt 0:01:11]} 14. Kb1 {[%emt 0:00:25]} b4 {[%emt 0:
00:10]} 15. Nd5 {[%emt 0:00:01]} Nxd5 {[%emt 0:00:34]} 16. exd5 {[%emt 0:00:02]
} Bxd5 {[%emt 0:00:12]} 17. b3 {[%emt 0:00:56]} Be6 {[%emt 0:00:01]} 18. Bg2 {
[%emt 0:00:11]} Rc8 {[%emt 0:00:00]} 19. f4 {[%emt 0:00:09]} Be7 {[%emt 0:00:
06]} 20. f5 {[%emt 0:00:09]} Bd7 {[%emt 0:00:01]} 21. g5 {[%emt 0:00:04]} hxg5
{[%emt 0:00:03]} 22. hxg5 {[%emt 0:00:01]} Bb5 {[%emt 0:00:01]} 23. Qg4 {
[%emt 0:00:01]} Qc7 {[%emt 0:00:04]} 24. Rc1 {[%emt 0:00:04]} Qc3 {[%emt 0:00:
01]} 25. f6 {[%emt 0:00:16]} Bd7 {[%emt 0:00:03]} 26. Qf3 {[%emt 0:00:09]} Bf8
{[%emt 0:00:02]} 27. fxg7 {[%emt 0:00:04]} Bxg7 {[%emt 0:00:01]} 28. Rgf1 {
[%emt 0:00:02]} Be6 {[%emt 0:00:01]} 29. Qe2 {[%emt 0:00:05]} e4 {[%emt 0:00:
03]} 30. Rf6 {[%emt 0:00:07]} Bxf6 {[%emt 0:00:01]} 31. gxf6 {[%emt 0:00:01]}
Qxf6 {[%emt 0:00:02]} 32. Bxe4 {[%emt 0:00:02]} Qc3 {[%emt 0:00:04]} 33. Re1 {
[%emt 0:00:03]} Kd7 {[%emt 0:00:02]} 34. Bd3 {[%emt 0:00:02]} Qc6 {[%emt 0:00:
03]} 35. Bc1 {[%emt 0:00:03]} Ra8 {[%emt 0:00:02]} 36. Qe3 {[%emt 0:00:03]} Qc5
{[%emt 0:00:02]} 37. Qg3 {[%emt 0:00:03]} Rac8 {[%emt 0:00:01]} 38. Qg7 {
[%emt 0:00:03]} Rhg8 {[%emt 0:00:02]} 39. Qf6 {[%emt 0:00:02]} Rgf8 {[%emt 0:
00:03]} 40. Bg5 {[%emt 0:00:01]} Rfe8 {[%emt 0:00:01]} 41. Qf2 {[%emt 0:00:05]}
Qxf2 {[%emt 0:00:01]} 42. Rc1 {[%emt 0:00:01]} Qc5 {[%emt 0:00:01]} 43. Bd2 {
[%emt 0:00:01]} a5 {[%emt 0:00:01]} 44. Rh1 {[%emt 0:00:03]} Rh8 {[%emt 0:00:
01]} 45. Rf1 {[%emt 0:00:02]} Rhg8 {[%emt 0:00:02]} 46. Kb2 {[%emt 0:00:01]}
Rg1 {[%emt 0:00:02]} 47. Rf4 {[%emt 0:00:03]} Qe5+ {[%emt 0:00:01]} 0-1

[Event "FIDE Women World Blitz 2021"]
[Site "Warsaw"]
[Date "2021.12.30"]
[Round "10.4"]
[White "Stefanova, Antoaneta"]
[Black "Shuvalova, Polina"]
[Result "1/2-1/2"]
[ECO "A14"]
[WhiteElo "2475"]
[BlackElo "2515"]
[Annotator "ChessBase"]
[PlyCount "157"]
[EventDate "2021.12.29"]
[EventType "swiss"]
[EventCountry "POL"]
[Tiebreak "Cut1 Buchholz"]
[SourceTitle "playchess.com"]
[Source "ChessBase"]
[SourceQuality "1"]
[TimeControl "180+2"]

1. Nf3 {[%emt 0:00:01]} Nf6 {[%emt 0:00:01]} 2. g3 {[%emt 0:00:01]} d5 {
[%emt 0:00:01]} 3. Bg2 {[%emt 0:00:02]} e6 {[%emt 0:00:02]} 4. O-O {[%emt 0:00:
03]} Be7 {[%emt 0:00:01]} 5. c4 {[%emt 0:00:06]} O-O {[%emt 0:00:02]} 6. b3 {
[%emt 0:00:04]} b6 {[%emt 0:00:02]} 7. Bb2 {[%emt 0:00:14]} Bb7 {[%emt 0:00:01]
} 8. cxd5 {[%emt 0:00:07]} Nxd5 {[%emt 0:00:02]} 9. d4 {[%emt 0:00:15]} Nd7 {
[%emt 0:00:01]} 10. e4 {[%emt 0:00:45]} N5f6 {[%emt 0:00:02]} 11. e5 {[%emt 0:
00:13]} Nd5 {[%emt 0:00:02]} 12. Nbd2 {[%emt 0:00:01]} c5 {[%emt 0:00:01]} 13.
Nc4 {[%emt 0:00:05]} Rc8 {[%emt 0:00:05]} 14. Rc1 {[%emt 0:00:02]} b5 {[%emt 0:
00:24]} 15. Nd6 {[%emt 0:00:14]} Bxd6 {[%emt 0:00:02]} 16. exd6 {[%emt 0:00:01]
} c4 {[%emt 0:00:05]} 17. bxc4 {[%emt 0:00:05]} bxc4 {[%emt 0:00:01]} 18. Ne5 {
[%emt 0:00:04]} c3 {[%emt 0:00:05]} 19. Ba3 {[%emt 0:00:03]} f6 {[%emt 0:00:19]
} 20. Nd3 {[%emt 0:00:12]} Qa5 {[%emt 0:00:23]} 21. Bc5 {[%emt 0:00:13]} Rfe8 {
[%emt 0:00:25]} 22. Qb3 {[%emt 0:00:06]} Bc6 {[%emt 0:00:29]} 23. Rfe1 {
[%emt 0:00:12]} Rb8 {[%emt 0:00:01]} 24. Qa3 {[%emt 0:00:04]} Qxa3 {[%emt 0:00:
17]} 25. Bxa3 {[%emt 0:00:01]} Kf7 {[%emt 0:00:01]} 26. Bxd5 {[%emt 0:00:07]}
Bxd5 {[%emt 0:00:07]} 27. Rxc3 {[%emt 0:00:01]} Rec8 {[%emt 0:00:42]} 28. Rc7 {
[%emt 0:00:06]} Rxc7 {[%emt 0:00:09]} 29. dxc7 {[%emt 0:00:02]} Rc8 {[%emt 0:
00:00]} 30. Bd6 {[%emt 0:00:01]} Nb6 {[%emt 0:00:02]} 31. g4 {[%emt 0:00:06]}
Ke8 {[%emt 0:00:01]} 32. Nc5 {[%emt 0:00:03]} Nc4 {[%emt 0:00:03]} 33. Bg3 {
[%emt 0:00:02]} Ke7 {[%emt 0:00:02]} 34. Rb1 {[%emt 0:00:08]} Nd6 {[%emt 0:00:
01]} 35. Na6 {[%emt 0:00:11]} Bc4 {[%emt 0:00:01]} 36. Nc5 {[%emt 0:00:02]} Bd5
{[%emt 0:00:06]} 37. Na6 {[%emt 0:00:01]} Bc4 {[%emt 0:00:02]} 38. Nc5 {
[%emt 0:00:01]} Bxa2 {[%emt 0:00:02]} 39. Ra1 {[%emt 0:00:01]} Bd5 {[%emt 0:00:
03]} 40. Rxa7 {[%emt 0:00:01]} Nb5 {[%emt 0:00:01]} 41. Ra1 {[%emt 0:00:03]}
Nd6 {[%emt 0:00:02]} 42. Na6 {[%emt 0:00:02]} Bb7 {[%emt 0:00:02]} 43. Nc5 {
[%emt 0:00:05]} Bd5 {[%emt 0:00:02]} 44. Na6 {[%emt 0:00:01]} Bc4 {[%emt 0:00:
01]} 45. Nc5 {[%emt 0:00:04]} Bd5 {[%emt 0:00:03]} 46. Na6 {[%emt 0:00:02]} h5
{[%emt 0:00:03]} 47. h3 {[%emt 0:00:01]} hxg4 {[%emt 0:00:01]} 48. hxg4 {
[%emt 0:00:02]} Bc4 {[%emt 0:00:01]} 49. Nc5 {[%emt 0:00:02]} Bd5 {[%emt 0:00:
02]} 50. Na6 {[%emt 0:00:01]} Ne4 {[%emt 0:00:03]} 51. Bf4 {[%emt 0:00:06]} g5
{[%emt 0:00:01]} 52. Be3 {[%emt 0:00:01]} Bc4 {[%emt 0:00:03]} 53. Nc5 {
[%emt 0:00:01]} Nxc5 {[%emt 0:00:02]} 54. dxc5 {[%emt 0:00:02]} Rxc7 {[%emt 0:
00:01]} 55. f3 {[%emt 0:00:00]} Bd5 {[%emt 0:00:02]} 56. Kf2 {[%emt 0:00:01]}
Rb7 {[%emt 0:00:00]} 57. c6 {[%emt 0:00:03]} Rb2+ {[%emt 0:00:04]} 58. Kg3 {
[%emt 0:00:01]} Bxc6 {[%emt 0:00:01]} 59. Ra7+ {[%emt 0:00:02]} Kd6 {[%emt 0:
00:03]} 60. Ra3 {[%emt 0:00:01]} Rc2 {[%emt 0:00:03]} 61. f4 {[%emt 0:00:02]}
Rg2+ {[%emt 0:00:03]} 62. Kh3 {[%emt 0:00:02]} Re2 {[%emt 0:00:02]} 63. fxg5 {
[%emt 0:00:02]} fxg5 {[%emt 0:00:01]} 64. Bxg5 {[%emt 0:00:02]} e5 {[%emt 0:00:
02]} 65. Rd3+ {[%emt 0:00:03]} Ke6 {[%emt 0:00:00]} 66. Rd2 {[%emt 0:00:01]}
Re1 {[%emt 0:00:02]} 67. Rc2 {[%emt 0:00:05]} Bd5 {[%emt 0:00:01]} 68. Rb2 {
[%emt 0:00:01]} Rh1+ {[%emt 0:00:03]} 69. Kg3 {[%emt 0:00:01]} Rd1 {[%emt 0:00:
02]} 70. Rb6+ {[%emt 0:00:02]} Kf7 {[%emt 0:00:01]} 71. Be3 {[%emt 0:00:01]}
Rd3 {[%emt 0:00:01]} 72. Kf2 {[%emt 0:00:01]} Ra3 {[%emt 0:00:03]} 73. g5 {
[%emt 0:00:03]} Kg7 {[%emt 0:00:03]} 74. Rd6 {[%emt 0:00:01]} Bf7 {[%emt 0:00:
02]} 75. Bd2 {[%emt 0:00:03]} Ra2 {[%emt 0:00:01]} 76. Ke3 {[%emt 0:00:01]}
Ra3+ {[%emt 0:00:03]} 77. Rd3 {[%emt 0:00:01]} Rxd3+ {[%emt 0:00:04]} 78. Kxd3
{[%emt 0:00:01]} e4+ 79. Kxe4 {[%emt 0:00:02]} 1/2-1/2